bitfinex/quotes_SOLUSD_20250508
["timestamp","ask_amount","ask_price","bid_price","bid_amount"]
[1746706773694,4.68412912,154.72,154.71,17.65151975]
[1746706774617,4.68412912,154.72,154.71,67.65151975]
[1746706774813,4.68412912,154.72,154.71,186.75268836]
[1746706775116,4.68412912,154.72,154.71,169.10116861]
[1746706775303,4.68412912,154.72,154.71,175.56487489]
[1746706775711,6.46131554,154.77,154.73,50.0]
[1746706776008,6.46131554,154.77,154.74,17.65151975]
[1746706776205,6.46131554,154.77,154.73,50.0]
[1746706776410,6.46131554,154.77,154.73,67.65151975]
[1746706776804,6.46131554,154.77,154.73,50.0]
[1746706777012,4.45670882,154.76,154.75,17.65151975]
[1746706777616,4.45670882,154.76,154.73,139.26286555]
[1746706777816,4.45670882,154.76,154.75,67.65151975]
[1746706777992,24.11157348,154.8,154.75,50.0]
[1746706778298,24.11157348,154.8,154.76,17.65151975]
[1746706778500,24.11157348,154.8,154.75,67.65151975]
[1746706778715,6.46005373,154.8,154.75,67.65151975]
[1746706779026,4.43135304,154.79,154.75,50.0]
[1746706779215,4.43135304,154.79,154.75,67.65151975]
[1746706779809,4.43135304,154.79,154.77,17.65151975]
[1746706780008,4.43135304,154.79,154.75,56.46196194]
[1746706780209,24.11105078,154.81,154.75,56.46196194]
[1746706780525,24.11105078,154.81,154.75,50.0]
[1746706780729,24.11105078,154.81,154.76,17.65151975]
[1746706780925,24.11105078,154.81,154.75,50.0]
[1746706781135,4.42978999,154.8,154.77,17.65151975]
[1746706781422,4.42978999,154.8,154.79,17.65151975]
[1746706781638,4.42978999,154.8,154.77,132.8]
[1746706781809,17.65151975,154.83,154.79,17.65151975]
[1746706782428,17.65151975,154.83,154.78,17.65151975]
[1746706782631,10.89409969,154.82,154.78,17.65151975]
[1746706783429,6.45916845,154.82,154.78,17.65151975]
[1746706785099,24.1106882,154.82,154.77,132.8]
[1746706785511,24.1106882,154.82,154.77,150.45151975]
[1746706785695,24.1106882,154.82,154.77,132.8]
[1746706785900,24.1106882,154.82,154.77,150.45151975]
[1746706786301,24.1106882,154.82,154.77,132.8]
[1746706786516,24.1106882,154.82,154.77,150.45151975]
[1746706786726,24.1106882,154.82,154.78,17.65151975]
[1746706787110,24.1106882,154.82,154.77,82.8]
[1746706787439,24.1106882,154.82,154.77,17.65151975]
[1746706787632,6.45916845,154.82,154.76,32.46142193]
[1746706787922,6.45916845,154.82,154.79,17.65151975]
[1746706788132,6.45916845,154.82,154.78,17.65151975]
[1746706788512,17.65151975,154.83,154.79,17.65151975]
[1746706788831,4.4383307,154.82,154.79,17.65151975]
[1746706789030,4.4383307,154.82,154.77,50.0]
[1746706789031,4.4383307,154.82,154.78,17.65151975]
[1746706789804,4.4383307,154.82,154.79,11.0196282]
[1746706790010,17.47856774,154.83,154.79,11.0196282]
[1746706790242,11.0196282,154.82,154.77,50.0]
[1746706790414,6.45893954,154.83,154.77,11.0196282]
[1746706790618,11.0196282,154.81,154.77,50.0]
[1746706790816,11.0196282,154.81,154.77,61.0196282]
[1746706791014,6.45893954,154.83,154.77,50.0]
[1746706791214,17.47922253,154.81,154.77,50.0]
[1746706791620,11.0196282,154.81,154.77,61.0196282]
[1746706791834,17.63584406,154.81,154.77,67.63584406]
[1746706792334,17.63584406,154.81,154.77,50.0]
[1746706792542,17.63584406,154.81,154.77,67.63584406]
[1746706792837,17.63584406,154.81,154.77,50.0]
[1746706793225,24.09555122,154.81,154.77,50.0]
[1746706793436,17.63584406,154.8,154.76,108.8]
[1746706793630,4.42794528,154.79,154.71,50.0]
[1746706793947,17.63584406,154.77,154.72,17.63584406]
[1746706794119,4.42794528,154.79,154.73,17.63584406]
[1746706794320,17.63584406,154.77,154.73,17.63584406]
[1746706794743,17.63584406,154.77,154.72,17.63584406]
[1746706795145,7.6807,154.8,154.73,17.63584406]
[1746706795313,6.46120279,154.77,154.73,17.63584406]
[1746706795639,24.09704685,154.77,154.73,17.63584406]
[1746706795843,24.09704685,154.77,154.72,17.63584406]
[1746706796048,24.09704685,154.77,154.73,17.63584406]
[1746706796625,17.63584406,154.76,154.71,82.46367033]
[1746706796842,6.46120279,154.77,154.71,82.46367033]
[1746706797129,6.46120279,154.77,154.72,17.63584406]
[1746706797130,17.63584406,154.76,154.72,17.63584406]
[1746706797529,17.63584406,154.76,154.71,76.0]
[1746706797730,17.63584406,154.76,154.72,17.63584406]
[1746706798042,17.63584406,154.76,154.71,93.63584406]
[1746706798247,17.63584406,154.75,154.71,50.0]
[1746706798419,17.63584406,154.74,154.69,76.0]
[1746706798616,17.63584406,154.73,154.69,50.0]
[1746706798830,17.63584406,154.73,154.69,67.63584406]
[1746706799045,6.46251353,154.74,154.69,17.63584406]
[1746706799343,24.09835759,154.74,154.69,17.63584406]
[1746706799722,24.09835759,154.74,154.68,32.46492111]
[1746706799925,17.63584406,154.73,154.68,43.63584406]
[1746706800125,17.63584406,154.73,154.69,17.63584406]
[1746706800721,24.09907819,154.73,154.69,17.63584406]
[1746706801147,6.46323413,154.73,154.69,17.63584406]
[1746706801342,17.63584406,154.74,154.7,17.63584406]
[1746706801343,24.09844511,154.74,154.7,17.63584406]
[1746706801846,6.46260105,154.74,154.7,17.63584406]
[1746706802425,17.63584406,154.75,154.7,17.63584406]
[1746706802630,16.15300122,154.77,154.7,17.63584406]
[1746706802829,4.46774218,154.74,154.68,32.46494966]
[1746706803056,4.46774218,154.74,154.7,17.63584406]
[1746706803426,4.46774218,154.74,154.73,17.63584406]
[1746706803626,6.46156146,154.77,154.73,17.63584406]
[1746706803853,6.46156146,154.77,154.74,17.63584406]
[1746706804221,4.458153,154.76,154.73,17.63584406]
[1746706805161,6.46156146,154.77,154.73,17.63584406]
[1746706805339,6.46036565,154.79,154.75,17.63584406]
[1746706805536,6.46036565,154.79,154.72,56.46319893]
[1746706805537,6.46036565,154.79,154.72,132.8]
[1746706805840,22.61127979,154.79,154.72,150.43584406]
[1746706806152,17.63584406,154.77,154.72,150.43584406]
[1746706806693,22.61127979,154.79,154.72,132.8]
[1746706806859,22.61127979,154.79,154.74,17.63584406]
[1746706807058,17.63584406,154.78,154.73,17.63584406]
[1746706807356,17.63584406,154.78,154.74,17.63584406]
[1746706808531,6.46036565,154.79,154.75,17.63584406]
[1746706809231,4.45476299,154.78,154.76,17.63584406]
[1746706809831,4.45476299,154.78,154.74,50.0]
[1746706810346,10.91583157,154.78,154.75,17.63584406]
[1746706810550,6.46106858,154.78,154.74,132.8]
[1746706810750,6.46106858,154.78,154.75,17.63584406]
[1746706811770,11.02499934,154.8,154.75,11.02499934]
[1746706812269,11.02499934,154.8,154.74,132.8]
[1746706812470,6.45953103,154.81,154.75,11.02499934]
[1746706812669,4.45979021,154.79,154.75,11.02499934]
[1746706813270,11.02499934,154.8,154.75,11.02499934]
[1746706813984,6.46036565,154.79,154.75,11.02499934]
[1746706814215,17.48536499,154.79,154.74,132.8]
[1746706814341,17.48536499,154.79,154.75,11.02499934]
[1746706814766,6.46036565,154.79,154.75,11.02499934]
[1746706814982,4.46588924,154.78,154.75,11.02499934]
[1746706815869,10.92687743,154.78,154.75,11.02499934]
[1746706816180,6.46098819,154.78,154.75,11.02499934]
[1746706817860,11.02499934,154.81,154.76,11.02499934]
[1746706818070,16.14818299,154.82,154.76,11.02499934]
[1746706818277,4.46847053,154.81,154.76,11.02499934]
[1746706818665,15.49346987,154.81,154.76,11.02499934]
[1746706818874,4.46847053,154.81,154.78,61.02499934]
[1746706819067,4.46847053,154.8,154.79,11.02499934]
[1746706819895,4.46847053,154.82,154.79,11.02499934]
[1746706820065,4.46847053,154.82,154.8,11.02499934]
[1746706821371,6.4583853,154.84,154.8,61.02499934]
[1746706821783,17.48338464,154.84,154.8,61.02499934]
[1746706822165,4.44714843,154.83,154.8,50.0]
[1746706822471,4.44714843,154.83,154.78,132.8]
[1746706822686,4.44714843,154.83,154.79,11.02499934]
[1746706823500,10.90620401,154.83,154.79,11.02499934]
[1746706823661,4.44714843,154.82,154.79,11.02499934]
[1746706823868,4.44714843,154.82,154.8,11.02499934]
[1746706824393,4.44714843,154.82,154.81,11.02499934]
[1746706824557,4.44714843,154.82,154.81,61.02499934]
[1746706824759,15.47214777,154.87,154.81,61.02499934]
[1746706824990,10.90426776,154.87,154.83,11.02499934]
[1746706825497,4.44714843,154.86,154.83,11.02499934]
[1746706825879,4.44714843,154.86,154.82,11.02499934]
[1746706826505,4.44714843,154.85,154.83,50.0]
[1746706826806,4.44714843,154.85,154.84,11.02499934]
[1746706826972,4.44714843,154.85,154.84,29.6746482]
[1746706827303,0.07133023,154.88,154.86,50.0]
[1746706827483,0.07133023,154.88,154.86,61.02499934]
[1746706827888,0.07133023,154.88,154.86,50.0]
[1746706828190,0.07133023,154.88,154.86,61.02499934]
[1746706828776,0.07133023,154.88,154.86,50.0]
[1746706828974,0.07133023,154.88,154.87,11.02499934]
[1746706829233,0.07133023,154.88,154.86,50.0]
[1746706829700,0.07133023,154.88,154.85,11.02499934]
[1746706830070,0.07133023,154.88,154.84,132.8]
[1746706830497,11.02499934,154.87,154.83,26.0]
[1746706830675,0.07133023,154.88,154.84,11.02499934]
[1746706830872,0.07133023,154.88,154.85,11.02499934]
[1746706831072,0.07133023,154.88,154.84,50.0]
[1746706831395,0.07133023,154.88,154.85,11.02499934]
[1746706831877,0.07133023,154.88,154.86,11.02499934]
[1746706832074,0.07133023,154.88,154.87,11.02499934]
[1746706832477,0.07133023,154.88,154.87,138.4746482]
[1746706832689,0.07133023,154.88,154.87,112.4746482]
[1746706833585,0.07133023,154.88,154.87,118.93167667]
[1746706833783,0.07133023,154.88,154.87,125.51047163]
[1746706834109,0.07133023,154.88,154.87,100.4037943]
[1746706834315,0.07133023,154.88,154.87,108.8]
[1746706834481,0.07133023,154.88,154.86,50.0]
[1746706834685,0.07133023,154.88,154.87,17.6037943]
[1746706835199,0.07133023,154.88,154.86,50.0]
[1746706835584,0.07133023,154.88,154.87,17.6037943]
[1746706836485,0.07133023,154.88,154.86,50.0]
[1746706836687,0.07133023,154.88,154.87,17.6037943]
[1746706838399,0.07133023,154.88,154.87,82.8]
[1746706838581,0.07133023,154.88,154.87,100.4037943]
[1746706839693,0.07133023,154.88,154.87,125.51047163]
[1746706841012,0.07133023,154.88,154.87,107.90667733]
[1746706841307,0.07133023,154.88,154.87,119.05344316]
[1746706841709,0.07133023,154.88,154.87,100.4037943]
[1746706841901,0.07133023,154.88,154.87,82.8]
[1746706842084,0.07133023,154.88,154.86,67.6037943]
[1746706842501,0.07133023,154.88,154.87,17.6037943]
[1746706842708,0.07133023,154.88,154.87,36.25344316]
[1746706843900,0.07133023,154.88,154.87,42.71047163]
[1746706845517,0.07133023,154.88,154.87,19.34277263]
[1746706845718,0.07133023,154.88,154.87,36.94656693]
[1746706847021,0.07133023,154.88,154.87,19.34277263]
[1746706847227,0.07133023,154.88,154.87,36.94656693]
[1746706850304,0.07133023,154.88,154.87,119.74656693]
[1746706852591,6.45301833,154.97,154.92,50.0]
[1746706852817,6.45301833,154.97,154.95,17.6037943]
[1746706853018,6.45301833,154.97,154.92,50.0]
[1746706853205,6.45301833,154.97,154.93,17.6037943]
[1746706853830,6.45301833,154.97,154.93,10.99913788]
[1746706854736,6.45301833,154.97,154.92,50.0]
[1746706854903,6.45301833,154.97,154.93,10.99913788]
[1746706856546,6.45301833,154.97,154.92,50.0]
[1746706856719,17.45215621,154.97,154.92,60.99913788]
[1746706856916,6.45301833,154.97,154.92,60.99913788]
[1746706857246,12.50633788,154.96,154.92,50.0]
[1746706857420,1.5072,154.96,154.92,50.0]
[1746706857813,12.50633788,154.96,154.92,50.0]
[1746706858013,1.5072,154.96,154.91,93.79913788]
[1746706858227,12.50633788,154.96,154.91,93.79913788]
[1746706858825,6.45369474,154.95,154.91,82.8]
[1746706859025,6.45369474,154.95,154.91,93.79913788]
[1746706859227,6.45369474,154.95,154.91,10.99913788]
[1746706859542,6.45369474,154.95,154.9,24.16]
[1746706859925,17.45283262,154.95,154.9,24.16]
[1746706860125,17.45283262,154.95,154.9,35.15913788]
[1746706860525,6.45369474,154.95,154.91,10.99913788]
[1746706861627,17.45283262,154.95,154.9,35.15913788]
[1746706861832,17.45283262,154.95,154.91,10.99913788]
[1746706862134,17.45283262,154.95,154.9,24.16]
[1746706862544,17.45283262,154.95,154.91,10.99913788]
[1746706862731,6.45369474,154.95,154.92,10.99913788]
[1746706863041,6.45369474,154.95,154.91,10.99913788]
[1746706863543,6.45369474,154.95,154.89,158.8]
[1746706863716,6.45369474,154.95,154.91,10.99913788]
[1746706863921,6.45369474,154.95,154.93,10.99913788]
[1746706864424,6.45369474,154.95,154.91,10.99913788]
[1746706864945,6.45369474,154.95,154.89,158.8]
[1746706865134,6.45369474,154.95,154.91,10.99913788]
[1746706865439,6.45369474,154.95,154.89,158.8]
[1746706865639,6.45369474,154.95,154.91,10.99913788]
[1746706865842,17.45283262,154.95,154.89,158.8]
[1746706866042,17.45283262,154.95,154.9,10.99913788]
[1746706866543,4.39387024,154.94,154.9,10.99913788]
[1746706867135,10.84826175,154.94,154.9,10.99913788]
[1746706867432,21.84739963,154.94,154.89,119.79913788]
[1746706867636,4.39387024,154.93,154.89,119.79913788]
[1746706867839,4.39387024,154.93,154.9,10.99913788]
[1746706868339,15.39300812,154.93,154.87,50.0]
[1746706868523,10.99913788,154.93,154.88,10.99913788]
[1746706868723,10.99913788,154.93,154.87,50.0]
[1746706868925,10.99913788,154.93,154.88,10.99913788]
[1746706869142,17.45408236,154.92,154.86,50.16]
[1746706869326,10.99913788,154.89,154.86,24.16]
[1746706869531,10.99913788,154.9,154.86,24.16]
[1746706870137,10.99913788,154.9,154.85,10.99913788]
[1746706870338,15.41044237,154.89,154.85,10.99913788]
[1746706870646,10.99913788,154.88,154.83,50.0]
[1746706870845,10.99913788,154.88,154.84,10.99913788]
[1746706871148,6.45661157,154.88,154.85,10.99913788]
[1746706871550,4.41130449,154.87,154.85,10.99913788]
[1746706871852,4.41130449,154.87,154.86,10.99913788]
[1746706872342,6.2225,154.91,154.86,10.99913788]
[1746706872547,36.99913788,154.93,154.88,10.99913788]
[1746706872848,6.45494448,154.92,154.89,10.99913788]
[1746706873150,6.45465469,154.93,154.9,10.99913788]
[1746706873327,12.9104181,154.95,154.91,10.99913788]
[1746706873646,4.42462606,154.94,154.89,50.0]
[1746706873848,4.42462606,154.94,154.91,10.99913788]
[1746706874269,4.42462606,154.94,154.89,50.0]
[1746706874443,4.42462606,154.94,154.91,50.0]
[1746706874953,6.45334864,154.96,154.92,10.99913788]
[1746706875162,6.45334864,154.96,154.91,50.0]
[1746706875443,6.45334864,154.96,154.91,60.99913788]
[1746706875633,6.45334864,154.96,154.91,50.0]
[1746706875833,17.45248652,154.96,154.91,50.0]
[1746706876049,6.45334864,154.96,154.91,50.0]
[1746706876349,10.99913788,154.95,154.89,50.0]
[1746706876535,6.45334864,154.96,154.9,10.99913788]
[1746706876736,6.45334864,154.96,154.89,50.0]
[1746706876923,6.45334864,154.96,154.92,10.99913788]
[1746706877126,17.45248652,154.96,154.89,56.45609751]
[1746706877430,17.45248652,154.96,154.91,10.99913788]
[1746706877629,6.45334864,154.96,154.91,10.99913788]
[1746706877836,6.45290967,154.97,154.93,10.99913788]
[1746706878239,6.45290967,154.97,154.91,50.0]
[1746706878446,10.99913788,154.96,154.91,50.0]
[1746706878631,6.45290967,154.97,154.91,60.99913788]
[1746706878832,10.99913788,154.96,154.91,50.0]
[1746706879148,10.99913788,154.95,154.9,10.99913788]
[1746706879330,10.99913788,154.96,154.91,10.99913788]
[1746706879530,6.45290967,154.97,154.91,10.99913788]
[1746706879724,10.99913788,154.95,154.89,50.0]
[1746706879947,10.99913788,154.95,154.9,10.99913788]
[1746706880454,10.99913788,154.95,154.89,50.0]
[1746706880648,10.99913788,154.93,154.88,82.8]
[1746706880858,22.58506428,154.97,154.9,10.99913788]
[1746706881066,10.99913788,154.94,154.87,163.41690469]
[1746706881266,22.58506428,154.97,154.87,163.41690469]
[1746706881433,22.58506428,154.97,154.89,10.99913788]
[1746706881633,10.99913788,154.94,154.89,10.99913788]
[1746706881926,4.40684172,154.93,154.89,10.99913788]
[1746706882146,4.40684172,154.93,154.87,189.41690469]
[1746706882337,4.40684172,154.93,154.89,10.99913788]
[1746706882756,4.40684172,154.93,154.87,165.25690469]
[1746706882938,4.40684172,154.93,154.89,10.99913788]
[1746706883137,10.86147331,154.93,154.89,10.99913788]
[1746706883457,4.40684172,154.92,154.89,10.99913788]
[1746706884151,10.14081119,154.94,154.89,10.99913788]
[1746706884345,27.6543,154.98,154.87,165.25690469]
[1746706884659,10.99913788,154.94,154.89,10.99913788]
[1746706884837,10.99913788,154.93,154.87,158.8]
[1746706885043,10.99913788,154.92,154.87,132.8]
[1746706885256,10.99913788,154.92,154.87,143.79913788]
[1746706885454,38.65343788,154.98,154.87,132.8]
[1746706885756,38.65343788,154.98,154.87,60.99913788]
[1746706885757,10.99913788,154.92,154.87,60.99913788]
[1746706885953,207.51618518,154.98,154.87,60.99913788]
[1746706886149,207.51618518,154.98,154.88,10.99913788]
[1746706886150,10.99913788,154.93,154.88,10.99913788]
[1746706888063,6.45494448,154.92,154.87,50.0]
[1746706888239,17.45408236,154.92,154.85,165.25772649]
[1746706888436,17.45408236,154.92,154.85,76.0]
[1746706888437,10.99913788,154.91,154.85,76.0]
[1746706888635,10.99913788,154.91,154.86,10.99913788]
[1746706888834,7.99024448,154.92,154.85,26.0]
[1746706888835,10.99913788,154.9,154.85,26.0]
[1746706889049,10.99913788,154.89,154.85,26.0]
[1746706889235,10.99913788,154.89,154.85,36.99913788]
[1746706889436,10.99913788,154.9,154.85,36.99913788]
[1746706889637,7.99024448,154.92,154.87,10.99913788]
[1746706889857,18.98938236,154.92,154.85,82.45781084]
[1746706890057,18.98938236,154.92,154.87,10.99913788]
[1746706890563,7.99024448,154.92,154.87,10.99913788]
[1746706890735,18.98938236,154.92,154.87,10.99913788]
[1746706890938,18.98938236,154.92,154.85,82.45781084]
[1746706891141,10.99913788,154.91,154.86,10.99913788]
[1746706891431,24.12760569,154.92,154.84,23.72]
[1746706891649,10.99913788,154.9,154.85,10.99913788]
[1746706891862,10.99913788,154.9,154.86,10.99913788]
[1746706892040,10.99913788,154.9,154.84,23.72]
[1746706892244,10.99913788,154.9,154.86,10.99913788]
[1746706892735,24.12760569,154.92,154.84,23.72]
[1746706892960,6.45619471,154.89,154.85,10.99913788]
[1746706893462,6.45619471,154.89,154.86,10.99913788]
[1746706894539,6.45619471,154.89,154.84,23.72]
[1746706894742,6.45593117,154.9,154.86,10.99913788]
[1746706894954,6.45593117,154.9,154.87,10.99913788]
[1746706895432,6.45550374,154.91,154.87,10.99913788]
[1746706895637,6.45550374,154.91,154.88,10.99913788]
[1746706896337,10.99913788,154.93,154.88,10.99913788]
[1746706896643,17.45374722,154.93,154.88,10.99913788]
[1746706897250,4.55827153,154.92,154.88,10.99913788]
[1746706897859,4.55827153,154.91,154.88,10.99913788]
[1746706898856,4.55827153,154.9,154.88,10.99913788]
[1746706899274,4.55827153,154.9,154.89,10.99913788]
[1746706900453,6.45468507,154.93,154.89,10.99913788]
[1746706900866,6.45411126,154.94,154.89,10.99913788]
[1746706901648,4.56068349,154.93,154.89,10.99913788]
[1746706902056,4.56068349,154.93,154.88,6.45658744]
[1746706902243,4.56068349,154.93,154.9,10.99913788]
[1746706902748,6.45494448,154.92,154.87,132.8]
[1746706902955,11.01562797,154.92,154.88,10.99913788]
[1746706903871,4.56068349,154.91,154.87,132.8]
[1746706904051,4.56068349,154.91,154.87,143.79913788]
[1746706904242,4.56068349,154.91,154.88,10.99913788]
[1746706904447,4.56068349,154.91,154.87,132.8]
[1746706904647,4.56068349,154.9,154.89,10.99913788]
[1746706904846,4.56068349,154.9,154.87,132.8]
[1746706905062,4.56068349,154.9,154.89,10.99913788]
[1746706905279,11.01659897,154.9,154.87,132.8]
[1746706905574,11.01659897,154.9,154.87,93.79913788]
[1746706906466,4.56068349,154.89,154.87,93.79913788]
[1746706906651,4.56068349,154.89,154.87,10.99913788]
[1746706907448,6.45591548,154.9,154.87,10.99913788]
[1746706907768,10.99913788,154.93,154.88,10.99913788]
[1746706908073,10.99913788,154.93,154.85,165.25774834]
[1746706908453,10.99913788,154.93,154.88,10.99913788]
[1746706908656,6.45494448,154.92,154.88,10.99913788]
[1746706908967,6.45494448,154.92,154.85,165.25774834]
[1746706909166,6.45494448,154.92,154.88,10.99913788]
[1746706910065,17.45408236,154.92,154.87,10.99913788]
[1746706910578,17.45408236,154.92,154.85,165.25774834]
[1746706910877,17.45408236,154.92,154.87,10.99913788]
[1746706911075,6.45494448,154.92,154.87,10.99913788]
[1746706911665,6.45494448,154.92,154.88,10.99913788]
[1746706912082,6.45494448,154.92,154.85,165.25774834]
[1746706912267,6.45494448,154.92,154.87,10.99913788]
[1746706912577,6.45494448,154.92,154.88,10.99913788]
[1746706914082,6.45494448,154.92,154.85,165.25752285]
[1746706914265,6.45494448,154.92,154.87,10.99913788]
[1746706914580,6.45494448,154.92,154.85,165.25752285]
[1746706914880,6.45494448,154.92,154.88,10.99913788]
[1746706915081,6.45452785,154.93,154.88,10.99913788]
[1746706915980,6.45452785,154.93,154.87,56.45700448]
[1746706916161,6.45452785,154.93,154.89,10.99913788]
[1746706916359,6.45452785,154.93,154.89,50.0]
[1746706916566,6.45452785,154.93,154.9,10.99913788]
[1746706917191,6.45369474,154.95,154.9,10.99913788]
[1746706917482,17.45283262,154.95,154.9,10.99913788]
[1746706918561,6.45369474,154.95,154.91,10.99913788]
[1746706918782,6.45369474,154.95,154.89,50.0]
[1746706918986,6.45369474,154.95,154.91,10.99913788]
[1746706919663,6.45369474,154.95,154.92,10.99913788]
[1746706919889,4.54301995,154.94,154.89,139.25602643]
[1746706920189,4.54301995,154.94,154.92,10.99913788]
[1746706920487,2.02,155.0,154.99,26.0]
[1746706920670,2.02,155.0,154.99,86.99913788]
[1746706922777,2.02,155.0,154.99,76.0]
[1746706922965,2.02,155.0,154.99,86.99913788]
[1746706925485,2.02,155.0,154.99,76.0]
[1746706925781,8.4716129,155.0,154.99,26.0]
[1746706926096,8.4716129,155.0,154.99,36.99913788]
[1746706926586,8.4716129,155.0,154.97,50.0]
[1746706926772,8.4716129,155.0,154.98,10.99913788]
[1746706927371,8.4716129,155.0,154.99,10.99913788]
[1746706927788,8.4716129,155.0,154.97,26.0]
[1746706928289,24.60064515,155.0,154.97,26.0]
[1746706928499,35.59978303,155.0,154.96,10.99913788]
[1746706928688,24.60064515,155.0,154.96,10.99913788]
[1746706928871,24.60064515,155.0,154.97,10.99913788]
[1746706929570,8.4716129,155.0,154.98,10.99913788]
[1746706929885,8.4716129,155.0,154.99,10.99913788]
[1746706930572,2.02,155.0,154.99,93.79913788]
[1746706931881,8.4716129,155.0,154.99,93.79913788]
[1746706934592,2.02,155.0,154.99,93.79913788]
[1746706941194,2.02,155.0,154.99,82.8]
[1746706941397,0.8900307,155.05,155.02,26.0]
[1746706941591,0.8900307,155.05,155.02,108.8]
[1746706941847,0.8900307,155.05,155.04,10.99913788]
[1746706942387,0.8900307,155.05,155.03,50.0]
[1746706942605,0.8900307,155.05,155.04,10.99913788]
[1746706943897,0.8900307,155.05,155.03,50.0]
[1746706944093,0.8900307,155.05,155.04,10.99913788]
[1746706945201,0.8900307,155.05,155.03,50.0]
[1746706945511,0.8900307,155.05,155.04,10.99913788]
[1746706945720,0.8900307,155.05,155.03,50.0]
[1746706946018,0.8900307,155.05,155.04,10.99913788]
[1746706947330,7.3395631,155.05,155.04,10.99913788]
[1746706948790,7.3395631,155.05,155.02,26.0]
[1746706948996,7.3395631,155.05,155.01,21.28]
[1746706949513,7.3395631,155.05,155.01,32.27913788]
[1746706949811,35.983232,155.05,155.01,21.28]
[1746706950014,35.983232,155.05,155.0,10.99913788]
[1746706950218,24.98409412,155.05,155.01,10.99913788]
[1746706950423,24.98409412,155.05,154.99,50.0]
[1746706950605,35.983232,155.05,155.01,10.99913788]
[1746706950920,24.98409412,155.05,155.01,10.99913788]
[1746706952117,24.98409412,155.05,154.99,50.0]
[1746706952330,24.98409412,155.05,155.01,10.99913788]
[1746706953105,24.98409412,155.05,154.99,50.0]
[1746706953704,35.983232,155.05,154.99,50.0]
[1746706954099,35.983232,155.05,155.0,10.99913788]
[1746706954413,24.98409412,155.05,154.99,50.0]
[1746706954608,24.98409412,155.05,155.01,10.99913788]
[1746706957715,24.98409412,155.05,155.02,10.99913788]
[1746706957913,8.8602631,155.05,155.02,10.99913788]
[1746706958423,7.3395631,155.05,155.03,10.99913788]
[1746706958599,7.3395631,155.05,155.01,50.0]
[1746706958800,7.3395631,155.05,155.04,10.99913788]
[1746706959019,7.3395631,155.05,155.03,10.99913788]
[1746706959328,7.3395631,155.05,155.04,10.99913788]
[1746706960395,7.3395631,155.05,155.01,50.0]
[1746706960714,7.3395631,155.05,155.03,10.99913788]
[1746706961702,7.3395631,155.05,155.01,50.0]
[1746706962329,7.3395631,155.05,155.03,10.99913788]
[1746706962818,7.3395631,155.05,155.01,50.0]
[1746706963123,7.3395631,155.05,155.04,10.99913788]
[1746706964030,7.3395631,155.05,155.01,50.0]
[1746706964415,7.3395631,155.05,155.04,10.99913788]
[1746706966330,7.3395631,155.05,155.01,50.0]
[1746706966523,7.3395631,155.05,155.04,10.99913788]
[1746706967113,7.3395631,155.05,155.01,50.0]
[1746706967313,7.3395631,155.05,155.04,10.99913788]
[1746706967918,11.90226554,155.05,155.04,10.99913788]
[1746706968921,11.90226554,155.05,155.03,10.99913788]
[1746706969118,11.90226554,155.05,155.01,50.0]
[1746706969334,11.90226554,155.05,155.03,10.99913788]
[1746706969513,11.90226554,155.05,154.99,26.0]
[1746706969822,7.3395631,155.05,155.02,10.99913788]
[1746706970334,7.3395631,155.05,154.99,26.0]
[1746706970539,4.56575188,155.04,155.02,10.99913788]
[1746706970830,6.45036444,155.03,155.02,10.99913788]
[1746706971326,11.01611632,155.03,154.99,26.0]
[1746706971515,11.01611632,155.03,155.02,10.99913788]
[1746706971715,11.01611632,155.03,154.99,26.0]
[1746706971918,11.01611632,155.03,155.02,10.99913788]
[1746706972329,6.45036444,155.03,154.99,26.0]
[1746706972533,6.45036444,155.03,155.02,10.99913788]
[1746706973208,4.57165604,155.03,155.02,10.99913788]
[1746706973407,4.57165604,155.03,155.0,50.0]
[1746706973640,27.14802804,155.03,154.96,50.0]
[1746706973819,4.57165604,155.02,154.94,53.2596281]
[1746706974021,15.57079392,155.02,154.97,10.99913788]
[1746706974243,4.57165604,155.02,154.95,26.0]
[1746706974419,4.57165604,155.02,154.94,50.0]
[1746706974617,33.57550988,155.03,154.98,10.99913788]
[1746706974917,4.58030712,155.02,154.95,26.0]
[1746706975129,4.58030712,155.02,154.98,10.99913788]
[1746706975829,6.45119669,155.01,154.95,26.0]
[1746706976039,11.03150381,155.01,154.98,10.99913788]
[1746706976228,11.03150381,155.01,154.95,26.0]
[1746706976422,11.03150381,155.01,154.99,10.99913788]
[1746706976423,4.58030712,155.01,154.99,10.99913788]
[1746706976640,6.4499484,155.04,155.0,10.99913788]
[1746706977246,10.99913788,155.03,154.96,50.0]